fUSD/lending_fUSD_20250505
["ID","MTS","AMOUNT","RATE_DAILY","PERIOD"]
[359923392,1746426651664,-1150.83,0.00019999,2]
[359923393,1746426651677,-1150.83,0.00019999,2]
[359923394,1746426651686,-1150.83,0.00019999,2]
[359923395,1746426651696,-1150.83,0.00019999,2]
[359923396,1746426651706,-1150.83,0.00019999,2]
[359923397,1746426651717,-1150.83,0.00019999,2]
[359923398,1746426651726,-1150.83,0.00019999,2]
[359923399,1746426651736,-1150.83,0.00019999,2]
[359923400,1746426651745,-1151.05406687,0.00019999,2]
[359923401,1746426651755,-531.77,0.00019999,2]
[359923402,1746426651766,-531.77,0.00019999,2]
[359923403,1746426651775,-531.77,0.00019999,2]
[359923404,1746426651785,-531.77,0.00019999,2]
[359923405,1746426651794,-531.77,0.00019999,2]
[359923406,1746426651804,-531.77,0.00019999,2]
[359923407,1746426651813,-531.77,0.00019999,2]
[359923408,1746426651823,-531.77,0.00019999,2]
[359923409,1746426651832,-531.77,0.00019999,2]
[359923410,1746426651842,-531.77,0.00019999,2]
[359923411,1746426651851,-531.77,0.00019999,2]
[359923412,1746426651861,-531.77,0.00019999,2]
[359923413,1746426651871,-531.77,0.00019999,2]
[359923414,1746426651881,-531.77,0.00019999,2]
[359923415,1746426651890,-531.77,0.00019999,2]
[359923416,1746426651900,-531.77,0.00019999,2]
[359923417,1746426651910,-531.77,0.00019999,2]
[359923418,1746426651919,-531.77,0.00019999,2]
[359923419,1746426651929,-531.77,0.00019999,2]
[359923420,1746426651939,-531.90610834,0.00019999,2]
[359923421,1746426651949,-1062.13934794,0.00019999,2]
[359923422,1746426651958,-276.38,0.00019999,2]
[359923423,1746426651968,-500.0,0.00019999,2]
[359923424,1746426651978,-500.0,0.00019999,2]
[359923425,1746426651988,-500.0,0.00019999,2]
[359923426,1746426651998,-500.0,0.00019999,2]
[359923427,1746426652007,-500.0,0.00019999,2]
[359923428,1746426652017,-500.0,0.00019999,2]
[359923429,1746426652027,-171.85990024,0.00019999,2]
[359923430,1746426652038,-603.98,0.00019999,2]
[359923431,1746426652048,-603.98,0.00019999,2]
[359923432,1746426652058,-603.98,0.00019999,2]
[359923433,1746426652068,-603.98,0.00019999,2]
[359923434,1746426652077,-603.98,0.00019999,2]
[359923435,1746426652087,-603.98,0.00019999,2]
[359923436,1746426652096,-603.98,0.00019999,2]
[359923437,1746426652106,-603.98,0.00019999,2]
[359923438,1746426652116,-603.98,0.00019999,2]
[359923439,1746426652125,-603.98,0.00019999,2]
[359923440,1746426652134,-603.98,0.00019999,2]
[359923441,1746426652144,-603.98,0.00019999,2]
[359923442,1746426652153,-603.98,0.00019999,2]
[359923443,1746426652163,-603.98,0.00019999,2]
[359923444,1746426652173,-603.98,0.00019999,2]
[359923445,1746426652182,-603.98,0.00019999,2]
[359923446,1746426652191,-603.98,0.00019999,2]
[359923447,1746426652201,-603.98,0.00019999,2]
[359923448,1746426652211,-603.98,0.00019999,2]
[359923449,1746426652220,-604.0629228,0.00019999,2]
[359923450,1746426652229,-450.0,0.00019999,2]
[359923451,1746426652238,-450.0,0.00019999,2]
[359923452,1746426652248,-450.0,0.00019999,2]
[359923453,1746426652257,-450.0,0.00019999,2]
[359923454,1746426652267,-450.0,0.00019999,2]
[359923455,1746426652277,-450.0,0.00019999,2]
[359923456,1746426652286,-450.0,0.00019999,2]
[359923457,1746426652296,-450.0,0.00019999,2]
[359923458,1746426652305,-450.0,0.00019999,2]
[359923459,1746426652315,-450.0,0.00019999,2]
[359923460,1746426652324,-450.0,0.00019999,2]
[359923461,1746426652333,-361.26428355,0.00019999,2]
[359923462,1746426652343,-450.0,0.00019999,2]
[359923463,1746426652352,-450.0,0.00019999,2]
[359923464,1746426652362,-450.0,0.00019999,2]
[359923465,1746426652372,-450.0,0.00019999,2]
[359923466,1746426652381,-450.0,0.00019999,2]
[359923467,1746426652390,-450.0,0.00019999,2]
[359923468,1746426652401,-450.0,0.00019999,2]
[359923469,1746426652411,-450.0,0.00019999,2]
[359923470,1746426652421,-450.0,0.00019999,2]
[359923471,1746426652432,-450.0,0.00019999,2]
[359923472,1746426652443,-450.0,0.00019999,2]
[359923473,1746426652454,-450.0,0.00019999,2]
[359923474,1746426652464,-450.0,0.00019999,2]
[359923475,1746426652474,-450.0,0.00019999,2]
[359923476,1746426652484,-450.0,0.00019999,2]
[359923477,1746426652494,-450.0,0.00019999,2]
[359923478,1746426652505,-388.07844464,0.00019999,2]
[359923479,1746426652515,-151.0,0.00019999,2]
[359923480,1746426652524,-151.0,0.00019999,2]
[359923481,1746426652533,-583.43,0.00019999,2]
[359923482,1746426652543,-583.43,0.00019999,2]
[359923483,1746426652552,-583.43,0.00019999,2]
[359923484,1746426652561,-583.43,0.00019999,2]
[359923485,1746426652571,-583.43,0.00019999,2]
[359923486,1746426652580,-583.43,0.00019999,2]
[359923487,1746426652590,-583.43,0.00019999,2]
[359923488,1746426652599,-583.43,0.00019999,2]
[359923489,1746426652609,-583.43,0.00019999,2]
[359923490,1746426652619,-583.43,0.00019999,2]
[359923491,1746426652629,-583.43,0.00019999,2]
[359923492,1746426652639,-583.43,0.00019999,2]
[359923493,1746426652649,-583.43,0.00019999,2]
[359923494,1746426652658,-583.43,0.00019999,2]
[359923495,1746426652668,-583.43,0.00019999,2]
[359923496,1746426652682,-583.43,0.00019999,2]
[359923497,1746426652692,-583.43,0.00019999,2]
[359923498,1746426652701,-583.43,0.00019999,2]
[359923499,1746426652711,-10298.11,0.00019999,2]
[359923500,1746426652720,-583.43,0.00019999,2]
[359923501,1746426652730,-10298.11,0.00019999,2]
[359923502,1746426652740,-583.58079175,0.00019999,2]
[359923503,1746426652749,-10298.11,0.00019999,2]
[359923504,1746426652759,-10298.11,0.00019999,2]
[359923505,1746426652769,-10298.11,0.00019999,2]
[359923506,1746426652778,-10298.11,0.00019999,2]
[359923507,1746426652788,-10298.11,0.00019999,2]
[359923508,1746426652797,-10298.11,0.00019999,2]
[359923509,1746426652807,-1833.05441182,0.00019999,2]
[359923510,1746426653018,-1511.68163776,0.00019999,2]
[359923511,1746426653030,-519.285,0.00019999,2]
[359923512,1746426711575,-500.69140034,0.00019897,2]
[359923513,1746426711602,-500.69140025,0.00019897,2]
[359923514,1746426711627,-500.69140025,0.00019898,2]
[359923515,1746426711653,-500.69140025,0.00019898,2]
[359923516,1746426711678,-500.69140025,0.00019898,2]
[359923517,1746426711706,-500.69140025,0.00019899,2]
[359923518,1746426711731,-500.69140025,0.00019899,2]
[359923519,1746426711756,-500.69140025,0.00019899,2]
[359923520,1746426711782,-500.69140025,0.000199,2]
[359923521,1746426711804,-13881.57102672,0.000199,2]
[359923522,1746426711830,-500.69140025,0.000199,2]
[359923523,1746426711856,-150.0,0.00019921,2]
[359923524,1746426711878,-500.0,0.00019973,2]
[359923525,1746426711904,-150.0,0.00019981,2]
[359923526,1746426711928,-454.7585585,0.00019986,2]
[359923527,1746426711951,-151.0,0.00019996,2]
[359923528,1746426711975,-450.0,0.00019996,2]
[359923529,1746426711999,-450.0,0.00019996,2]
[359923530,1746426712023,-450.0,0.00019996,2]
[359923531,1746426712047,-450.0,0.00019996,2]
[359923532,1746426712072,-450.0,0.00019996,2]
[359923533,1746426712097,-450.0,0.00019996,2]
[359923534,1746426712122,-450.0,0.00019996,2]
[359923535,1746426712146,-450.0,0.00019996,2]
[359923536,1746426712170,-450.0,0.00019996,2]
[359923537,1746426712195,-450.0,0.00019996,2]
[359923538,1746426712218,-450.0,0.00019996,2]
[359923539,1746426712242,-450.0,0.00019996,2]
[359923540,1746426712266,-450.0,0.00019996,2]
[359923541,1746426712289,-450.0,0.00019996,2]
[359923542,1746426712313,-457.36,0.00019996,2]
[359923543,1746426712337,-450.0,0.00019996,2]
[359923544,1746426712361,-450.0,0.00019996,2]
[359923545,1746426712384,-450.0,0.00019996,2]
[359923546,1746426712412,-450.0,0.00019996,2]
[359923547,1746426712437,-300.0,0.00019998,2]
[359923548,1746426712462,-6434.08895042,0.00019999,2]
[359923549,1746426712487,-10298.11,0.00019999,2]
[359923550,1746426712512,-10298.11,0.00019999,2]
[359923551,1746426712536,-10298.11,0.00019999,2]
[359923552,1746426712560,-10298.11,0.00019999,2]
[359923553,1746426712585,-10298.11,0.00019999,2]
[359923554,1746426712610,-10298.11,0.00019999,2]
[359923555,1746426712634,-10298.11,0.00019999,2]
[359923556,1746426712658,-10298.11,0.00019999,2]
[359923557,1746426712686,-10298.11,0.00019999,2]
[359923558,1746426712716,-10298.11,0.00019999,2]
[359923559,1746426712740,-10298.11607933,0.00019999,2]
[359923560,1746426712767,-845.86,0.00019999,2]
[359923561,1746426712794,-845.86,0.00019999,2]
[359923562,1746426712820,-845.86,0.00019999,2]
[359923563,1746426712846,-845.86,0.00019999,2]
[359923564,1746426712873,-845.86,0.00019999,2]
[359923565,1746426712899,-845.86,0.00019999,2]
[359923566,1746426712927,-845.86,0.00019999,2]
[359923567,1746426712953,-845.86,0.00019999,2]
[359923568,1746426712979,-845.86,0.00019999,2]
[359923569,1746426713009,-845.86,0.00019999,2]
[359923570,1746426713036,-845.86,0.00019999,2]
[359923571,1746426713064,-845.86,0.00019999,2]
[359923572,1746426713092,-845.86,0.00019999,2]
[359923573,1746426713121,-845.86,0.00019999,2]
[359923574,1746426713150,-845.86,0.00019999,2]
[359923575,1746426713178,-845.86,0.00019999,2]
[359923576,1746426713206,-845.86,0.00019999,2]
[359923577,1746426713232,-845.86,0.00019999,2]
[359923578,1746426713259,-845.86,0.00019999,2]
[359923579,1746426713286,-846.0801134,0.00019999,2]
[359923580,1746426713312,-2989.11,0.00019999,2]
[359923581,1746426713338,-2989.11,0.00019999,2]
[359923582,1746426713364,-2989.11,0.00019999,2]
[359923583,1746426713391,-2989.11,0.00019999,2]
[359923584,1746426713418,-2989.11,0.00019999,2]
[359923585,1746426713444,-2989.11,0.00019999,2]
[359923586,1746426713471,-2989.11,0.00019999,2]
[359923587,1746426713497,-2989.11,0.00019999,2]
[359923588,1746426713523,-2989.11,0.00019999,2]
[359923589,1746426713558,-2989.11,0.00019999,2]
[359923590,1746426713587,-2989.11,0.00019999,2]
[359923591,1746426713613,-2989.11,0.00019999,2]
[359923592,1746426713640,-2989.11,0.00019999,2]
[359923593,1746426713666,-2989.11,0.00019999,2]
[359923594,1746426713695,-2989.11,0.00019999,2]
[359923595,1746426713722,-2989.11,0.00019999,2]
[359923596,1746426713749,-2989.11,0.00019999,2]
[359923597,1746426713974,-2989.11,0.00019999,2]
[359923598,1746426714000,-2989.11,0.00019999,2]
[359923599,1746426714027,-2989.11308597,0.00019999,2]
[359923600,1746426714053,-450.0,0.00019999,2]
[359923601,1746426714079,-450.0,0.00019999,2]
[359923602,1746426714110,-450.0,0.00019999,2]
[359923603,1746426714137,-450.0,0.00019999,2]
[359923604,1746426714163,-450.0,0.00019999,2]
[359923605,1746426714189,-450.0,0.00019999,2]
[359923606,1746426714215,-450.0,0.00019999,2]
[359923607,1746426714241,-450.0,0.00019999,2]
[359923608,1746426714266,-178.07655044,0.00019999,2]
[359923609,1746426714291,-450.0,0.00019999,2]
[359923610,1746426714317,-450.0,0.00019999,2]
[359923611,1746426714342,-450.0,0.00019999,2]
[359923612,1746426714368,-450.0,0.00019999,2]
[359923613,1746426714394,-450.0,0.00019999,2]
[359923614,1746426714419,-450.0,0.00019999,2]
[359923615,1746426714445,-450.0,0.00019999,2]
[359923616,1746426714471,-450.0,0.00019999,2]
[359923617,1746426714496,-450.0,0.00019999,2]
[359923618,1746426714520,-450.0,0.00019999,2]
[359923619,1746426714545,-450.0,0.00019999,2]
[359923620,1746426714569,-450.0,0.00019999,2]
[359923621,1746426714595,-1115.08,0.00019999,2]
[359923622,1746426714620,-150.0,0.00019999,2]
[359923623,1746426714645,-1115.08,0.00019999,2]
[359923624,1746426714670,-1115.08,0.00019999,2]
[359923625,1746426714696,-1115.08,0.00019999,2]
[359923626,1746426714722,-1115.08,0.00019999,2]
[359923627,1746426714745,-150.0,0.00019999,2]
[359923628,1746426714771,-1115.08,0.00019999,2]
[359923629,1746426714796,-1115.08,0.00019999,2]
[359923630,1746426714822,-1115.08,0.00019999,2]
[359923631,1746426714847,-1115.08,0.00019999,2]
[359923632,1746426714870,-150.0,0.00019999,2]
[359923633,1746426714895,-1115.08,0.00019999,2]
[359923634,1746426714923,-1115.08,0.00019999,2]
[359923635,1746426714947,-1115.08,0.00019999,2]
[359923636,1746426714971,-150.0,0.00019999,2]
[359923637,1746426714995,-1115.08,0.00019999,2]
[359923638,1746426715021,-1115.08,0.00019999,2]
[359923639,1746426715046,-1115.08,0.00019999,2]
[359923640,1746426715071,-1115.08,0.00019999,2]
[359923641,1746426715096,-1115.08,0.00019999,2]
[359923642,1746426715122,-1115.08,0.00019999,2]
[359923643,1746426715146,-150.0,0.00019999,2]
[359923644,1746426715170,-1115.08,0.00019999,2]
[359923645,1746426715195,-1115.30168789,0.00019999,2]
[359923646,1746426715219,-450.0,0.00019999,2]
[359923647,1746426715243,-450.0,0.00019999,2]
[359923648,1746426715266,-150.0,0.00019999,2]
[359923649,1746426715290,-450.0,0.00019999,2]
[359923650,1746426715315,-450.0,0.00019999,2]
[359923651,1746426715339,-450.0,0.00019999,2]
[359923652,1746426715363,-155.04043237,0.00019999,2]
[359923653,1746426715388,-450.0,0.00019999,2]
[359923654,1746426715415,-450.0,0.00019999,2]
[359923655,1746426715453,-450.0,0.00019999,2]
[359923656,1746426715484,-450.0,0.00019999,2]
[359923657,1746426715517,-450.0,0.00019999,2]
[359923658,1746426715551,-450.0,0.00019999,2]
[359923659,1746426715585,-450.0,0.00019999,2]
[359923660,1746426715615,-450.0,0.00019999,2]
[359923661,1746426715653,-450.0,0.00019999,2]
[359923662,1746426715687,-450.0,0.00019999,2]
[359923663,1746426715723,-450.0,0.00019999,2]
[359923664,1746426715756,-523.59047924,0.00019999,2]
[359923665,1746426715790,-450.0,0.00019999,2]
[359923666,1746426715823,-450.0,0.00019999,2]
[359923667,1746426715855,-450.0,0.00019999,2]
[359923668,1746426715890,-450.0,0.00019999,2]
[359923669,1746426715921,-450.0,0.00019999,2]
[359923670,1746426715950,-316.32099265,0.00019999,2]
[359923671,1746426715984,-4412.56,0.00019999,2]
[359923672,1746426716014,-4412.56,0.00019999,2]
[359923673,1746426716044,-4412.56,0.00019999,2]
[359923674,1746426716080,-4412.56,0.00019999,2]
[359923675,1746426716111,-4412.56,0.00019999,2]
[359923676,1746426716140,-4412.56,0.00019999,2]
[359923677,1746426716171,-4412.56,0.00019999,2]
[359923678,1746426716202,-4412.56,0.00019999,2]
[359923679,1746426716235,-4412.56,0.00019999,2]
[359923680,1746426716266,-4412.56,0.00019999,2]
[359923681,1746426716298,-4412.56,0.00019999,2]
[359923682,1746426716330,-4412.56,0.00019999,2]
[359923683,1746426716361,-4412.56,0.00019999,2]
[359923684,1746426716392,-4412.56,0.00019999,2]
[359923685,1746426716421,-4412.56,0.00019999,2]
[359923686,1746426716451,-4412.56,0.00019999,2]
[359923687,1746426716481,-4412.56,0.00019999,2]
[359923688,1746426716512,-4412.56,0.00019999,2]
[359923689,1746426716541,-4412.56,0.00019999,2]
[359923690,1746426716573,-4412.74200845,0.00019999,2]
[359923691,1746426716602,-450.0,0.00019999,2]
[359923692,1746426716632,-450.0,0.00019999,2]
[359923693,1746426716662,-450.0,0.00019999,2]
[359923694,1746426716692,-450.0,0.00019999,2]
[359923695,1746426716722,-450.0,0.00019999,2]
[359923696,1746426716752,-450.0,0.00019999,2]
[359923697,1746426716778,-450.0,0.00019999,2]
[359923698,1746426716803,-450.0,0.00019999,2]
[359923699,1746426716829,-274.63638401,0.00019999,2]
[359923700,1746426716853,-536.08,0.00019999,2]
[359923701,1746426716878,-536.08,0.00019999,2]
[359923702,1746426716902,-536.08,0.00019999,2]
[359923703,1746426716927,-536.08,0.00019999,2]
[359923704,1746426716952,-536.08,0.00019999,2]
[359923705,1746426716977,-536.08,0.00019999,2]
[359923706,1746426717001,-536.08,0.00019999,2]
[359923707,1746426717025,-536.08,0.00019999,2]
[359923708,1746426717266,-536.08,0.00019999,2]
[359923709,1746426717297,-536.08,0.00019999,2]
[359923710,1746426717323,-536.08,0.00019999,2]
[359923711,1746426717348,-536.08,0.00019999,2]
[359923712,1746426717373,-536.08,0.00019999,2]
[359923713,1746426717396,-536.08,0.00019999,2]
[359923714,1746426717420,-536.08,0.00019999,2]
[359923715,1746426717445,-536.08,0.00019999,2]
[359923716,1746426717471,-536.08,0.00019999,2]
[359923717,1746426717499,-536.08,0.00019999,2]
[359923718,1746426717525,-536.08,0.00019999,2]
[359923719,1746426717551,-536.24076391,0.00019999,2]
[359923720,1746426717576,-561.0,0.0002,2]
[359923721,1746426717600,-2000.0,0.0002,4]
[359923722,1746426717628,-2000.0,0.0002,4]
[359923723,1746426717657,-2000.0,0.0002,4]
[359923724,1746426717684,-2000.0,0.0002,4]
[359923725,1746426717715,-2000.0,0.0002,4]
[359923726,1746426717740,-2000.0,0.0002,4]
[359923727,1746426717768,-376201.83888411,0.0002,2]
[359923730,1746426904299,808.72,0.00019104,2]
[359923731,1746426936777,156.41,0.0003,30]
[359923733,1746427066991,1000.0,0.00018922,2]
[359923734,1746427177155,337880.15449901,0.00019412,7]
[359923736,1746427218957,538.87903902,0.00027945,30]
[359923737,1746427242266,662.38,0.00027397,120]
[359923788,1746427605131,23900.0,0.00018888,2]
[359923789,1746427607579,364.16,0.00016971,2]
[359923790,1746427607791,364.16,0.00019234,2]
[359923821,1746427654100,250.0,0.00017,2]
[359923822,1746427655180,300.0,0.00019,2]
[359923836,1746427727654,175.83,0.00019178,2]
[359923885,1746427832281,-150.0,0.00019708,2]
[359923886,1746427832291,-200.0,0.00019709,2]
[359923887,1746427832300,-200.0,0.00019709,2]
[359923888,1746427832310,-150.0,0.00019713,2]
[359923889,1746427832319,-167.54066903,0.00019714,2]
[359923890,1746427832330,-151.0,0.00019714,2]
[359923891,1746427832339,-150.0,0.00019721,2]
[359923892,1746427832348,-150.0,0.00019755,2]
[359923893,1746427832357,-150.0,0.00019784,2]
[359923894,1746427832367,-207.4,0.00019787,2]
[359923895,1746427832376,-157.1429634,0.00019799,2]
[359923896,1746427832385,-167.26991262,0.00019824,2]
[359923897,1746427832394,-150.0,0.00019827,2]
[359923898,1746427832403,-157.14296339,0.0001985,2]
[359923899,1746427832412,-500.0,0.00019873,2]
[359923900,1746427832421,-150.0,0.00019882,2]
[359923901,1746427832431,-151.0,0.00019883,2]
[359923902,1746427832440,-668.65185757,0.00019883,2]
[359923903,1746427832449,-2500.0,0.00019894,2]
[359923904,1746427832458,-1200.0,0.00019894,2]
[359923905,1746427832467,-833.38967615,0.00019895,2]
[359923906,1746427832477,-300.0,0.00019895,2]
[359923907,1746427832486,-833.38967612,0.00019896,2]
[359923908,1746427832495,-203.35718172,0.00019896,2]
[359923909,1746427832507,-1003.66831828,0.00019896,2]
[359923910,1746427832516,-161.33345751,0.00019896,2]
[359923911,1746427832525,-300.0,0.00019896,2]
[359923912,1746427832534,-833.38967612,0.00019896,2]
[359923913,1746427832543,-833.38967612,0.00019897,2]
[359923914,1746427832552,-851.62850758,0.00019897,2]
[359923915,1746427832563,-1474.0999994,0.00019897,2]
[359923916,1746427832574,-406.02829302,0.00019897,2]
[359923917,1746427832584,-170.93240514,0.00019897,2]
[359923918,1746427832595,-666.19503,0.00019897,2]
[359923919,1746427832606,-162.87256486,0.00019897,2]
[359923920,1746427832615,-552.74013897,0.00019897,2]
[359923921,1746427832626,-280.64953715,0.00019897,2]
[359923922,1746427832635,-833.38967612,0.00019898,2]
[359923923,1746427832644,-500.0,0.00019898,2]
[359923924,1746427832653,-458.41377292,0.00019898,2]
[359924111,1746427834450,-41.58622708,0.00019898,2]
[359924112,1746427834459,-500.0,0.00019898,2]
[359924113,1746427834468,-500.0,0.00019898,2]
[359924114,1746427834477,-500.0,0.00019898,2]
[359924115,1746427834486,-137.49384128,0.00019898,2]
[359924116,1746427834497,-332.26095277,0.00019898,2]
[359924117,1746427834508,-30.24520595,0.00019898,2]
[359924118,1746427834517,-387.49686021,0.00019898,2]
[359924496,1746427838405,-112.50313979,0.00019898,2]
[359924498,1746427838415,-500.0,0.00019898,2]
[359924499,1746427838423,-495.85358582,0.00019898,2]
[359924514,1746427838580,-4.14641418,0.00019898,2]
[359924515,1746427838590,-500.0,0.00019898,2]
[359924516,1746427838600,-500.0,0.00019898,2]
[359924517,1746427838609,-91.73732127,0.00019898,2]
[359924669,1746427840688,-408.26267873,0.00019898,2]
[359924671,1746427840698,-500.0,0.00019898,2]
[359924673,1746427840708,-500.0,0.00019898,2]
[359924675,1746427840717,-500.0,0.00019898,2]
[359924677,1746427840726,-500.0,0.00019898,2]
[359924679,1746427840736,-500.0,0.00019898,2]
[359924681,1746427840746,-61.65687405,0.00019898,2]
[359924838,1746427842533,-0.02579617,0.00019898,2]
[359924841,1746427842550,-438.31732978,0.00019898,2]
[359924843,1746427842559,-171.89135731,0.00019898,2]
[359924957,1746427843491,-328.10864269,0.00019898,2]
[359924959,1746427843501,-500.0,0.00019898,2]
[359924961,1746427843511,-500.0,0.00019898,2]
[359924963,1746427843521,-500.0,0.00019898,2]
[359924966,1746427843531,-511.06784127,0.00019898,2]
[359924968,1746427843540,-500.0,0.00019898,2]
[359924969,1746427843549,-500.0,0.00019898,2]
[359924971,1746427843558,-161.36930514,0.00019898,2]
[359925263,1746427846531,-338.63069486,0.00019898,2]
[359925265,1746427846540,-163.59730304,0.00019898,2]
[359925267,1746427846551,-336.40269696,0.00019898,2]
[359925269,1746427846561,-191.83730304,0.00019898,2]
[359926123,1746427866763,163.77007,0.000248,34]
[359926125,1746427969894,3503.8285135,0.0003,30]
[359926126,1746428165670,246.84029602,0.000295,30]
[359926127,1746428220201,1000.0,0.00018924,2]
[359926131,1746428456867,1231.0,0.000194,2]
[359926132,1746428519036,5015.50173527,0.0003,30]
[359926133,1746428552872,617.415,0.0003,30]
[359926134,1746428659608,-685.423955,0.000196,2]
[359926135,1746428667309,-395.08433241,0.000196,2]
[359926136,1746428675388,-150.49171259,0.000196,2]
[359926137,1746428676284,227.30336361,0.00018496,2]
[359926138,1746428676311,8.12059139,0.00018496,2]
[359926139,1746428718152,356.43,0.00016956,2]
[359926140,1746428718358,356.43,0.0001922,2]
[359926141,1746428757397,515918.97,0.0003,30]
[359926142,1746428818539,23900.0,0.00018867,2]
[359926302,1746429037790,-151.0,0.00019663,2]
[359926303,1746429037800,-200.0,0.00019678,2]
[359926304,1746429037809,-200.0,0.00019694,2]
[359926305,1746429037821,-150.0,0.00019731,2]
[359926306,1746429037830,-150.0,0.00019736,2]
[359926307,1746429037840,-150.0,0.00019757,2]
[359926308,1746429037850,-150.0,0.00019784,2]
[359926309,1746429037859,-207.4,0.00019788,2]
[359926310,1746429037869,-150.0,0.00019792,2]
[359926311,1746429037879,-253.67019549,0.00019795,2]
[359926312,1746429037888,-1084.90029437,0.000198,2]
[359926313,1746429037985,-146.09970563,0.000198,2]
[359926314,1746429037997,-199.81256356,0.00019803,2]
[359926315,1746429038006,-253.67019541,0.00019807,2]
[359926316,1746429038015,-253.67019541,0.00019818,2]
[359926317,1746429038024,-150.0,0.00019823,2]
[359926318,1746429038034,-253.67019541,0.0001983,2]
[359926319,1746429038043,-253.67019541,0.00019842,2]
[359926320,1746429038052,-253.67019541,0.00019853,2]
[359926321,1746429038062,-253.67019541,0.00019865,2]
[359926322,1746429038072,-163.77007,0.0001987,23]
[359926323,1746429038082,-150.0,0.00019872,2]
[359926324,1746429038091,-500.0,0.00019873,2]
[359926325,1746429038100,-253.67019541,0.00019877,2]
[359926326,1746429038109,-253.67019541,0.00019888,2]
[359926327,1746429038118,-300.0,0.00019892,2]
[359926328,1746429038127,-333.35587052,0.00019893,2]
[359926330,1746429038137,-300.0,0.00019893,2]
[359926332,1746429038146,-1200.0,0.00019893,2]
[359926334,1746429038156,-161.33345751,0.00019893,2]
[359926336,1746429038166,-333.35587044,0.00019894,2]
[359926337,1746429038175,-373.3548,0.00019894,2]
[359926339,1746429038185,-500.0,0.00019894,2]
[359926341,1746429038193,-500.0,0.00019894,2]
[359926343,1746429038203,-500.0,0.00019894,2]
[359926345,1746429038213,-500.0,0.00019894,2]
[359926347,1746429038222,-500.0,0.00019894,2]
[359926349,1746429038232,-500.0,0.00019894,2]
[359926351,1746429038241,-500.0,0.00019894,2]
[359926353,1746429038250,-500.0,0.00019894,2]
[359926355,1746429038260,-500.0,0.00019894,2]
[359926357,1746429038269,-500.0,0.00019894,2]
[359926359,1746429038279,-500.0,0.00019894,2]
[359926361,1746429038287,-500.0,0.00019894,2]
[359926363,1746429038297,-500.0,0.00019894,2]
[359926365,1746429038307,-500.0,0.00019894,2]
[359926367,1746429038317,-500.0,0.00019894,2]
[359926369,1746429038326,-500.0,0.00019894,2]
[359926371,1746429038336,-178.45321139,0.00019894,2]
[359926373,1746429038345,-500.0,0.00019894,2]
[359926375,1746429038354,-500.0,0.00019894,2]
[359926377,1746429038364,-500.0,0.00019894,2]
[359926379,1746429038373,-145.84893044,0.00019894,2]
[359926582,1746429039969,-354.15106956,0.00019894,2]
[359926585,1746429039978,-500.0,0.00019894,2]
[359926588,1746429039988,-500.0,0.00019894,2]
[359926591,1746429039997,-500.0,0.00019894,2]
[359926594,1746429040006,-500.0,0.00019894,2]
[359926597,1746429040015,-500.0,0.00019894,2]